fUSD/lending_fUSD_20260621
["ID","MTS","AMOUNT","RATE_DAILY","PERIOD"]
[425963302,1782045076000,-500.0,0.00028219,2]
[425963311,1782045076000,-831.45,0.00028219,2]
[425963348,1782045076000,-500.0,0.00028219,2]
[425963294,1782045076000,-573.65,0.00028219,2]
[425963292,1782045076000,-500.0,0.00028219,2]
[425963293,1782045076000,-500.0,0.00028219,2]
[425963295,1782045076000,-500.0,0.00028219,2]
[425963296,1782045076000,-500.0,0.00028219,2]
[425963297,1782045076000,-500.0,0.00028219,2]
[425963310,1782045076000,-427.48802915,0.00028219,2]
[425963301,1782045076000,-500.0,0.00028219,2]
[425963309,1782045076000,-500.0,0.00028219,2]
[425963299,1782045076000,-500.0,0.00028219,2]
[425963300,1782045076000,-454.52756795,0.00028219,2]
[425963298,1782045076000,-500.0,0.00028219,2]
[425963304,1782045076000,-535.03,0.00028219,2]
[425963305,1782045076000,-500.0,0.00028219,2]
[425963308,1782045076000,-819.78,0.00028219,2]
[425963303,1782045076000,-664.19,0.00028219,2]
[425963307,1782045076000,-500.0,0.00028219,2]
[425963306,1782045076000,-500.0,0.00028219,2]
[425963312,1782045076000,-1393.02,0.00028219,2]
[425963322,1782045076000,-500.0,0.00028219,2]
[425963320,1782045076000,-500.0,0.00028219,2]
[425963321,1782045076000,-773.43,0.00028219,2]
[425963323,1782045076000,-175.10160676,0.00028219,2]
[425963324,1782045076000,-500.0,0.00028219,2]
[425963314,1782045076000,-500.0,0.00028219,2]
[425963347,1782045076000,-500.0,0.00028219,2]
[425963349,1782045076000,-500.0,0.00028219,2]
[425963387,1782045076000,-533.71793331,0.00028219,2]
[425963379,1782045076000,-500.0,0.00028219,2]
[425963386,1782045076000,-500.0,0.00028219,2]
[425963381,1782045076000,-500.0,0.00028219,2]
[425963385,1782045076000,-500.0,0.00028219,2]
[425963380,1782045076000,-500.0,0.00028219,2]
[425963377,1782045076000,-1092.63,0.00028219,2]
[425963384,1782045076000,-567.5,0.00028219,2]
[425963388,1782045076000,-654.24,0.00028219,2]
[425963396,1782045076000,-599.7,0.00028219,2]
[425963392,1782045076000,-594.9,0.00028219,2]
[425963394,1782045076000,-500.0,0.00028219,2]
[425963389,1782045076000,-500.0,0.00028219,2]
[425963398,1782045076000,-1106.11,0.00028219,2]
[425963391,1782045076000,-500.0,0.00028219,2]
[425963399,1782045076000,-1377.34,0.00028219,2]
[425963397,1782045076000,-500.0,0.00028219,2]
[425963393,1782045076000,-500.0,0.00028219,2]
[425963390,1782045076000,-500.0,0.00028219,2]
[425963395,1782045076000,-500.0,0.00028219,2]
[425963402,1782045076000,-500.0,0.00028219,2]
[425963401,1782045076000,-3980.31,0.00028219,2]
[425963403,1782045076000,-500.0,0.00028219,2]
[425963404,1782045076000,-714.95,0.00028219,2]
[425963342,1782045076000,-500.0,0.00028219,2]
[425963400,1782045076000,-500.0,0.00028219,2]
[425963383,1782045076000,-500.0,0.00028219,2]
[425963376,1782045076000,-1064.53,0.00028219,2]
[425963382,1782045076000,-500.0,0.00028219,2]
[425963378,1782045076000,-500.0,0.00028219,2]
[425963352,1782045076000,-500.0,0.00028219,2]
[425963351,1782045076000,-867.75,0.00028219,2]
[425963353,1782045076000,-500.0,0.00028219,2]
[425963357,1782045076000,-500.0,0.00028219,2]
[425963354,1782045076000,-588.39,0.00028219,2]
[425963350,1782045076000,-500.0,0.00028219,2]
[425963356,1782045076000,-500.0,0.00028219,2]
[425963375,1782045076000,-770.99,0.00028219,2]
[425963355,1782045076000,-500.0,0.00028219,2]
[425963360,1782045076000,-500.0,0.00028219,2]
[425963358,1782045076000,-163.87219011,0.00028219,2]
[425963361,1782045076000,-500.0,0.00028219,2]
[425963373,1782045076000,-500.0,0.00028219,2]
[425963359,1782045076000,-500.0,0.00028219,2]
[425963371,1782045076000,-500.0,0.00028219,2]
[425963366,1782045076000,-500.0,0.00028219,2]
[425963362,1782045076000,-500.0,0.00028219,2]
[425963364,1782045076000,-500.0,0.00028219,2]
[425963374,1782045076000,-500.0,0.00028219,2]
[425963365,1782045076000,-4527.98,0.00028219,2]
[425963368,1782045076000,-500.0,0.00028219,2]
[425963367,1782045076000,-500.0,0.00028219,2]
[425963370,1782045076000,-981.53,0.00028219,2]
[425963372,1782045076000,-500.0,0.00028219,2]
[425963369,1782045076000,-602.92,0.00028219,2]
[425963363,1782045076000,-732.43,0.00028219,2]
[425963439,1782045077000,-500.0,0.00028219,2]
[425963435,1782045077000,-972.04,0.00028219,2]
[425963444,1782045077000,-500.0,0.00028219,2]
[425963451,1782045077000,-500.0,0.00028219,2]
[425963443,1782045077000,-500.0,0.00028219,2]
[425963449,1782045077000,-500.0,0.00028219,2]
[425963448,1782045077000,-500.0,0.00028219,2]
[425963447,1782045077000,-500.0,0.00028219,2]
[425963450,1782045077000,-500.0,0.00028219,2]
[425963441,1782045077000,-500.0,0.00028219,2]
[425963440,1782045077000,-500.0,0.00028219,2]
[425963446,1782045077000,-3381.02,0.00028219,2]
[425963442,1782045077000,-525.02,0.00028219,2]
[425963445,1782045077000,-500.0,0.00028219,2]
[425963476,1782045077000,-500.0,0.00028219,2]
[425963463,1782045077000,-500.0,0.00028219,2]
[425963464,1782045077000,-500.0,0.00028219,2]
[425963456,1782045077000,-500.0,0.00028219,2]
[425963461,1782045077000,-500.0,0.00028219,2]
[425963462,1782045077000,-500.0,0.00028219,2]
[425963452,1782045077000,-500.0,0.00028219,2]
[425963458,1782045077000,-936.56,0.00028219,2]
[425963460,1782045077000,-902.56,0.00028219,2]
[425963453,1782045077000,-980.22,0.00028219,2]
[425963457,1782045077000,-500.0,0.00028219,2]
[425963459,1782045077000,-500.0,0.00028219,2]
[425963455,1782045077000,-500.0,0.00028219,2]
[425963437,1782045077000,-500.0,0.00028219,2]
[425963454,1782045077000,-500.0,0.00028219,2]
[425963431,1782045077000,-500.0,0.00028219,2]
[425963409,1782045077000,-500.0,0.00028219,2]
[425963432,1782045077000,-357.26631943,0.00028219,2]
[425963405,1782045077000,-500.0,0.00028219,2]
[425963407,1782045077000,-658.11,0.00028219,2]
[425963410,1782045077000,-765.44,0.00028219,2]
[425963411,1782045077000,-530.32,0.00028219,2]
[425963406,1782045077000,-500.0,0.00028219,2]
[425963408,1782045077000,-508.83,0.00028219,2]
[425963412,1782045077000,-934.71,0.00028219,2]
[425963414,1782045077000,-500.0,0.00028219,2]
[425963415,1782045077000,-500.0,0.00028219,2]
[425963416,1782045077000,-500.0,0.00028219,2]
[425963413,1782045077000,-500.0,0.00028219,2]
[425963424,1782045077000,-1038.14,0.00028219,2]
[425963425,1782045077000,-500.0,0.00028219,2]
[425963434,1782045077000,-500.0,0.00028219,2]
[425963423,1782045077000,-500.0,0.00028219,2]
[425963420,1782045077000,-500.0,0.00028219,2]
[425963417,1782045077000,-152.14656906,0.00028219,2]
[425963421,1782045077000,-500.0,0.00028219,2]
[425963422,1782045077000,-248.8169898,0.00028219,2]
[425963419,1782045077000,-519.27421148,0.00028219,2]
[425963426,1782045077000,-500.0,0.00028219,2]
[425963427,1782045077000,-500.0,0.00028219,2]
[425963433,1782045077000,-500.0,0.00028219,2]
[425963429,1782045077000,-500.0,0.00028219,2]
[425963438,1782045077000,-500.0,0.00028219,2]
[425963430,1782045077000,-500.0,0.00028219,2]
[425963436,1782045077000,-384.46019677,0.00028219,2]
[425963428,1782045077000,-645.56,0.00028219,2]
[425963418,1782045077000,-545.39,0.00028219,2]
[425963465,1782045077000,-500.0,0.00028219,2]
[425963520,1782045077000,-500.0,0.00028219,2]
[425963467,1782045077000,-762.64,0.00028219,2]
[425963504,1782045077000,-500.0,0.00028219,2]
[425963502,1782045077000,-520.31,0.00028219,2]
[425963508,1782045077000,-500.0,0.00028219,2]
[425963511,1782045077000,-500.0,0.00028219,2]
[425963510,1782045077000,-500.0,0.00028219,2]
[425963506,1782045077000,-732.04,0.00028219,2]
[425963512,1782045077000,-500.0,0.00028219,2]
[425963507,1782045077000,-500.0,0.00028219,2]
[425963514,1782045077000,-822.03,0.00028219,2]
[425963505,1782045077000,-500.0,0.00028219,2]
[425963503,1782045077000,-500.0,0.00028219,2]
[425963509,1782045077000,-826.36,0.00028219,2]
[425963516,1782045077000,-500.0,0.00028219,2]
[425963494,1782045077000,-500.0,0.00028219,2]
[425963526,1782045077000,-500.0,0.00028219,2]
[425963517,1782045077000,-41216.394702,0.00028219,2]
[425963525,1782045077000,-620.22,0.00028219,2]
[425963515,1782045077000,-500.0,0.00028219,2]
[425963518,1782045077000,-254.60551309,0.00028219,2]
[425963522,1782045077000,-500.0,0.00028219,2]
[425963521,1782045077000,-500.0,0.00028219,2]
[425963523,1782045077000,-500.0,0.00028219,2]
[425963524,1782045077000,-155.05665557,0.00028219,2]
[425963529,1782045077000,-500.0,0.00028219,2]
[425963528,1782045077000,-500.0,0.00028219,2]
[425963530,1782045077000,-500.0,0.00028219,2]
[425963527,1782045077000,-500.0,0.00028219,2]
[425963468,1782045077000,-500.0,0.00028219,2]
[425963519,1782045077000,-500.0,0.00028219,2]
[425963496,1782045077000,-500.0,0.00028219,2]
[425963513,1782045077000,-500.0,0.00028219,2]
[425963492,1782045077000,-847.94,0.00028219,2]
[425963498,1782045077000,-500.0,0.00028219,2]
[425963474,1782045077000,-500.0,0.00028219,2]
[425963470,1782045077000,-1598.41,0.00028219,2]
[425963475,1782045077000,-500.0,0.00028219,2]
[425963466,1782045077000,-538.33,0.00028219,2]
[425963469,1782045077000,-500.0,0.00028219,2]
[425963473,1782045077000,-500.0,0.00028219,2]
[425963472,1782045077000,-500.0,0.00028219,2]
[425963481,1782045077000,-598.59,0.00028219,2]
[425963488,1782045077000,-543.15,0.00028219,2]
[425963489,1782045077000,-558.96784261,0.00028219,2]
[425963482,1782045077000,-521.05,0.00028219,2]
[425963484,1782045077000,-161.00287,0.00028219,2]
[425963480,1782045077000,-643.45481538,0.00028219,2]
[425963479,1782045077000,-500.0,0.00028219,2]
[425963471,1782045077000,-500.0,0.00028219,2]
[425963500,1782045077000,-391.00625191,0.00028219,2]
[425963501,1782045077000,-500.0,0.00028219,2]
[425963495,1782045077000,-934.78,0.00028219,2]
[425963491,1782045077000,-500.0,0.00028219,2]
[425963477,1782045077000,-500.0,0.00028219,2]
[425963497,1782045077000,-741.63,0.00028219,2]
[425963490,1782045077000,-500.0,0.00028219,2]
[425963493,1782045077000,-604.53,0.00028219,2]
[425963485,1782045077000,-500.0,0.00028219,2]
[425963486,1782045077000,-500.0,0.00028219,2]
[425963487,1782045077000,-500.0,0.00028219,2]
[425963478,1782045077000,-500.0,0.00028219,2]
[425963483,1782045077000,-500.0,0.00028219,2]
[425963499,1782045077000,-500.0,0.00028219,2]
[425963575,1782045078000,-1465.91,0.00028219,2]
[425963576,1782045078000,-866.69,0.00028219,2]
[425963572,1782045078000,-500.0,0.00028219,2]
[425963571,1782045078000,-952.51,0.00028219,2]
[425963568,1782045078000,-500.0,0.00028219,2]
[425963564,1782045078000,-500.0,0.00028219,2]
[425963566,1782045078000,-500.0,0.00028219,2]
[425963578,1782045078000,-2678.53,0.00028219,2]
[425963577,1782045078000,-500.0,0.00028219,2]
[425963567,1782045078000,-500.0,0.00028219,2]
[425963563,1782045078000,-564.53,0.00028219,2]
[425963569,1782045078000,-500.0,0.00028219,2]
[425963570,1782045078000,-500.0,0.00028219,2]
[425963573,1782045078000,-742.97,0.00028219,2]
[425963591,1782045078000,-1144.58,0.00028219,2]
[425963584,1782045078000,-1080.44,0.00028219,2]
[425963581,1782045078000,-500.0,0.00028219,2]
[425963592,1782045078000,-1118.18,0.00028219,2]
[425963582,1782045078000,-500.0,0.00028219,2]
[425963588,1782045078000,-500.0,0.00028219,2]
[425963579,1782045078000,-500.0,0.00028219,2]
[425963583,1782045078000,-500.0,0.00028219,2]
[425963580,1782045078000,-1511.74,0.00028219,2]
[425963586,1782045078000,-500.0,0.00028219,2]
[425963587,1782045078000,-500.0,0.00028219,2]
[425963589,1782045078000,-616.78032856,0.00028219,2]
[425963585,1782045078000,-519.3,0.00028219,2]
[425963590,1782045078000,-4055.16,0.00028219,2]
[425963574,1782045078000,-500.0,0.00028219,2]
[425963559,1782045078000,-524.72212906,0.00028219,2]
[425963594,1782045078000,-507.55579273,0.00028219,2]
[425963557,1782045078000,-500.0,0.00028219,2]
[425963532,1782045078000,-500.0,0.00028219,2]
[425963531,1782045078000,-500.0,0.00028219,2]
[425963535,1782045078000,-286.97139351,0.00028219,2]
[425963534,1782045078000,-500.0,0.00028219,2]
[425963539,1782045078000,-500.0,0.00028219,2]
[425963537,1782045078000,-500.0,0.00028219,2]
[425963536,1782045078000,-678.71,0.00028219,2]
[425963538,1782045078000,-500.0,0.00028219,2]
[425963533,1782045078000,-500.0,0.00028219,2]
[425963541,1782045078000,-500.0,0.00028219,2]
[425963543,1782045078000,-500.0,0.00028219,2]
[425963552,1782045078000,-500.0,0.00028219,2]
[425963550,1782045078000,-175.5582748,0.00028219,2]
[425963548,1782045078000,-583.83,0.00028219,2]
[425963544,1782045078000,-500.0,0.00028219,2]
[425963542,1782045078000,-500.0,0.00028219,2]
[425963549,1782045078000,-8081.3,0.00028219,2]
[425963546,1782045078000,-500.0,0.00028219,2]
[425963545,1782045078000,-500.0,0.00028219,2]
[425963547,1782045078000,-500.0,0.00028219,2]
[425963551,1782045078000,-500.0,0.00028219,2]
[425963540,1782045078000,-500.0,0.00028219,2]
[425963553,1782045078000,-500.0,0.00028219,2]
[425963556,1782045078000,-500.0,0.00028219,2]
[425963555,1782045078000,-500.0,0.00028219,2]
[425963560,1782045078000,-1423.29,0.00028219,2]
[425963554,1782045078000,-179.53400901,0.00028219,2]
[425963561,1782045078000,-500.0,0.00028219,2]
[425963565,1782045078000,-500.0,0.00028219,2]
[425963562,1782045078000,-500.0,0.00028219,2]
[425963604,1782045078000,-348.39451199,0.00028219,2]
[425963558,1782045078000,-500.0,0.00028219,2]
[425963602,1782045078000,-500.0,0.00028219,2]
[425963631,1782045078000,-5864.59,0.00028219,2]
[425963634,1782045078000,-6355.9,0.00028219,2]
[425963636,1782045078000,-500.0,0.00028219,2]
[425963633,1782045078000,-347.43657631,0.00028219,2]
[425963658,1782045078000,-500.0,0.00028219,2]
[425963632,1782045078000,-500.0,0.00028219,2]
[425963640,1782045078000,-576.16,0.00028219,2]
[425963638,1782045078000,-471.4760649,0.00028219,2]
[425963639,1782045078000,-5224.19,0.00028219,2]
[425963635,1782045078000,-500.0,0.00028219,2]
[425963641,1782045078000,-500.0,0.00028219,2]
[425963637,1782045078000,-1823.11,0.00028219,2]
[425963642,1782045078000,-500.0,0.00028219,2]
[425963643,1782045078000,-500.0,0.00028219,2]
[425963644,1782045078000,-500.0,0.00028219,2]
[425963648,1782045078000,-500.0,0.00028219,2]
[425963657,1782045078000,-500.0,0.00028219,2]
[425963646,1782045078000,-1056.03,0.00028219,2]
[425963652,1782045078000,-5008.67,0.00028219,2]
[425963655,1782045078000,-163.200745,0.00028219,7]
[425963645,1782045078000,-729.63,0.00028219,2]
[425963649,1782045078000,-500.0,0.00028219,2]
[425963650,1782045078000,-500.0,0.00028219,2]
[425963656,1782045078000,-500.0,0.00028219,2]
[425963647,1782045078000,-500.0,0.00028219,2]
[425963654,1782045078000,-500.0,0.00028219,2]
[425963651,1782045078000,-163.200745,0.00028219,7]
[425963659,1782045078000,-500.0,0.00028219,2]
[425963598,1782045078000,-616.3,0.00028219,2]
[425963625,1782045078000,-500.0,0.00028219,2]
[425963626,1782045078000,-500.0,0.00028219,2]
[425963653,1782045078000,-163.200745,0.00028219,7]
[425963629,1782045078000,-635.33342118,0.00028219,2]
[425963627,1782045078000,-500.0,0.00028219,2]
[425963595,1782045078000,-500.0,0.00028219,2]
[425963597,1782045078000,-605.58365149,0.00028219,2]
[425963605,1782045078000,-243.52585581,0.00028219,2]
[425963599,1782045078000,-632.2,0.00028219,2]
[425963603,1782045078000,-500.0,0.00028219,2]
[425963601,1782045078000,-500.0,0.00028219,2]
[425963600,1782045078000,-485.69372992,0.00028219,2]
[425963596,1782045078000,-500.0,0.00028219,2]
[425963609,1782045078000,-500.0,0.00028219,2]
[425963606,1782045078000,-3531.97,0.00028219,2]
[425963615,1782045078000,-500.0,0.00028219,2]
[425963613,1782045078000,-3987.32,0.00028219,2]
[425963611,1782045078000,-500.0,0.00028219,2]
[425963617,1782045078000,-500.0,0.00028219,2]
[425963593,1782045078000,-500.0,0.00028219,2]
[425963614,1782045078000,-781.73,0.00028219,2]
[425963610,1782045078000,-500.0,0.00028219,2]
[425963624,1782045078000,-239.95808326,0.00028219,2]
[425963623,1782045078000,-500.0,0.00028219,2]
[425963630,1782045078000,-500.0,0.00028219,2]
[425963622,1782045078000,-3618.62,0.00028219,2]
[425963619,1782045078000,-500.0,0.00028219,2]
[425963628,1782045078000,-500.0,0.00028219,2]
[425963620,1782045078000,-500.0,0.00028219,2]
[425963612,1782045078000,-3268.54,0.00028219,2]
[425963607,1782045078000,-500.0,0.00028219,2]
[425963616,1782045078000,-286.74291555,0.00028219,2]
[425963618,1782045078000,-500.0,0.00028219,2]
[425963621,1782045078000,-517.66992654,0.00028219,2]
[425963608,1782045078000,-333.64757059,0.00028219,2]
[425963702,1782045079000,-500.0,0.00028219,2]
[425963700,1782045079000,-500.0,0.00028219,2]
[425963710,1782045079000,-551.39,0.00028219,2]
[425963709,1782045079000,-500.0,0.00028219,2]
[425963708,1782045079000,-3214.78,0.00028219,2]
[425963691,1782045079000,-1355.81,0.00028219,2]
[425963690,1782045079000,-500.0,0.00028219,2]
[425963685,1782045079000,-500.0,0.00028219,2]
[425963689,1782045079000,-500.0,0.00028219,2]
[425963697,1782045079000,-507.9,0.00028219,2]
[425963696,1782045079000,-237.30265246,0.00028219,2]
[425963698,1782045079000,-500.0,0.00028219,2]
[425963693,1782045079000,-500.0,0.00028219,2]
[425963706,1782045079000,-2146.6,0.00028219,2]
[425963703,1782045079000,-7823.53,0.00028219,2]
[425963701,1782045079000,-500.0,0.00028219,2]
[425963707,1782045079000,-500.0,0.00028219,2]
[425963705,1782045079000,-1000.0,0.00028219,2]
[425963704,1782045079000,-500.0,0.00028219,2]
[425963711,1782045079000,-6223.97,0.00028219,2]
[425963712,1782045079000,-6731.23,0.00028219,2]
[425963722,1782045079000,-276.38,0.00028219,2]
[425963723,1782045079000,-4728.06,0.00028219,2]
[425963713,1782045079000,-9055.22,0.00028219,2]
[425963714,1782045079000,-5860.3,0.00028219,2]
[425963695,1782045079000,-500.0,0.00028219,2]
[425963715,1782045079000,-500.0,0.00028219,2]
[425963699,1782045079000,-500.0,0.00028219,2]
[425963694,1782045079000,-4844.04,0.00028219,2]
[425963680,1782045079000,-4832.29,0.00028219,2]
[425963684,1782045079000,-1025.57,0.00028219,2]
[425963721,1782045079000,-597.69,0.00028219,2]
[425963668,1782045079000,-1433.76,0.00028219,2]
[425963660,1782045079000,-163.200736,0.00028219,7]
[425963666,1782045079000,-500.0,0.00028219,2]
[425963661,1782045079000,-1286.09,0.00028219,2]
[425963664,1782045079000,-500.0,0.00028219,2]
[425963667,1782045079000,-450.19425557,0.00028219,2]
[425963662,1782045079000,-500.0,0.00028219,2]
[425963669,1782045079000,-500.0,0.00028219,2]
[425963670,1782045079000,-1130.66,0.00028219,2]
[425963663,1782045079000,-7733.74,0.00028219,2]
[425963665,1782045079000,-500.0,0.00028219,2]
[425963681,1782045079000,-179.60050284,0.00028219,2]
[425963683,1782045079000,-500.0,0.00028219,2]
[425963682,1782045079000,-500.0,0.00028219,2]
[425963671,1782045079000,-500.0,0.00028219,2]
[425963672,1782045079000,-3782.67,0.00028219,2]
[425963675,1782045079000,-500.0,0.00028219,2]
[425963674,1782045079000,-500.0,0.00028219,2]
[425963673,1782045079000,-500.0,0.00028219,2]
[425963676,1782045079000,-500.0,0.00028219,2]
[425963677,1782045079000,-500.0,0.00028219,2]
[425963678,1782045079000,-500.0,0.00028219,2]
[425963679,1782045079000,-4173.31,0.00028219,2]
[425963688,1782045079000,-500.0,0.00028219,2]
[425963686,1782045079000,-500.0,0.00028219,2]
[425963687,1782045079000,-500.0,0.00028219,2]
[425963692,1782045079000,-500.0,0.00028219,2]
[425963716,1782045079000,-500.0,0.00028219,2]
[425963729,1782045079000,-5141.27,0.00028219,2]
[425963717,1782045079000,-726.26,0.00028219,2]
[425963756,1782045079000,-4330.21,0.00028219,2]
[425963752,1782045079000,-500.0,0.00028219,2]
[425963765,1782045079000,-871.25,0.00028219,2]
[425963754,1782045079000,-8598.16,0.00028219,2]
[425963764,1782045079000,-7002.11,0.00028219,2]
[425963763,1782045079000,-773.06,0.00028219,2]
[425963758,1782045079000,-4167.22,0.00028219,2]
[425963762,1782045079000,-8107.86,0.00028219,2]
[425963760,1782045079000,-500.0,0.00028219,2]
[425963761,1782045079000,-500.0,0.00028219,2]
[425963757,1782045079000,-500.0,0.00028219,2]
[425963759,1782045079000,-500.0,0.00028219,2]
[425963718,1782045079000,-1474.82,0.00028219,2]
[425963766,1782045079000,-500.0,0.00028219,2]
[425963767,1782045079000,-500.0,0.00028219,2]
[425963772,1782045079000,-1020.02,0.00028219,2]
[425963778,1782045079000,-500.0,0.00028219,2]
[425963779,1782045079000,-6940.99,0.00028219,2]
[425963776,1782045079000,-5165.11,0.00028219,2]
[425963773,1782045079000,-500.0,0.00028219,2]
[425963777,1782045079000,-741.34,0.00028219,2]
[425963768,1782045079000,-500.0,0.00028219,2]
[425963770,1782045079000,-730.46,0.00028219,2]
[425963771,1782045079000,-5276.34,0.00028219,2]
[425963775,1782045079000,-500.0,0.00028219,2]
[425963774,1782045079000,-500.0,0.00028219,2]
[425963780,1782045079000,-500.0,0.00028219,2]
[425963755,1782045079000,-500.0,0.00028219,2]
[425963753,1782045079000,-5407.87,0.00028219,2]
[425963769,1782045079000,-500.0,0.00028219,2]
[425963749,1782045079000,-1491.56,0.00028219,2]
[425963748,1782045079000,-500.0,0.00028219,2]
[425963719,1782045079000,-637.47,0.00028219,2]
[425963724,1782045079000,-500.0,0.00028219,2]
[425963735,1782045079000,-500.23,0.00028219,2]
[425963727,1782045079000,-500.0,0.00028219,2]
[425963736,1782045079000,-6263.39,0.00028219,2]
[425963737,1782045079000,-403.29947283,0.00028219,2]
[425963726,1782045079000,-500.0,0.00028219,2]
[425963731,1782045079000,-500.0,0.00028219,2]
[425963734,1782045079000,-500.0,0.00028219,2]
[425963730,1782045079000,-500.0,0.00028219,2]
[425963728,1782045079000,-5096.32,0.00028219,2]
[425963733,1782045079000,-420.423312,0.00028219,2]
[425963725,1782045079000,-1159.08,0.00028219,2]
[425963732,1782045079000,-1298.87,0.00028219,2]
[425963751,1782045079000,-580.58,0.00028219,2]
[425963741,1782045079000,-500.0,0.00028219,2]
[425963746,1782045079000,-500.0,0.00028219,2]
[425963720,1782045079000,-3992.11,0.00028219,2]
[425963747,1782045079000,-3170.63,0.00028219,2]
[425963739,1782045079000,-924.2,0.00028219,2]
[425963745,1782045079000,-8232.87,0.00028219,2]
[425963740,1782045079000,-9081.48,0.00028219,2]
[425963744,1782045079000,-3197.6,0.00028219,2]
[425963750,1782045079000,-992.87,0.00028219,2]
[425963742,1782045079000,-6306.04,0.00028219,2]
[425963738,1782045079000,-8949.23,0.00028219,2]
[425963743,1782045079000,-832.56,0.00028219,2]
[425963784,1782045080000,-591.52,0.00028219,2]
[425963787,1782045080000,-622.11459867,0.00028219,2]
[425963786,1782045080000,-500.0,0.00028219,2]
[425963788,1782045080000,-12006.98,0.00028219,2]
[425963781,1782045080000,-500.0,0.00028219,2]
[425963783,1782045080000,-500.0,0.00028219,2]
[425963782,1782045080000,-500.0,0.00028219,2]
[425963785,1782045080000,-500.0,0.00028219,2]
[425963794,1782045080000,-500.0,0.00028219,2]
[425963791,1782045080000,-4743.48,0.00028219,2]
[425963789,1782045080000,-500.0,0.00028219,2]
[425963792,1782045080000,-4314.2,0.00028219,2]
[425963793,1782045080000,-7717.9,0.00028219,2]
[425963795,1782045080000,-2610.18219176,0.00028219,2]
[425963797,1782045080000,-84.50560362,0.00028219,2]
[425963796,1782045080000,-500.0,0.00027671,2]
[425963790,1782045080000,-500.0,0.00028219,2]
[425963800,1782045081000,-212.71258637,0.00026433,2]
[425963799,1782045081000,-159.81981107,0.00020387,2]
[425963798,1782045081000,-103.87492193,0.00020387,2]
[425963810,1782045082000,-213.23392812,0.000282,2]
[425963809,1782045082000,-8872.92,0.00027397,10]
[425963807,1782045082000,-3230.13254427,0.00026433,2]
[425963808,1782045082000,-500.0,0.00027397,2]
[425963806,1782045082000,-2223.84158778,0.00022407,2]
[425963801,1782045082000,-177.90780237,0.00013028,2]
[425963805,1782045082000,-29.66219763,0.00022407,2]
[425963803,1782045082000,-92.96780237,0.0002,2]
[425963802,1782045082000,-80.03219763,0.0002,2]
[425963813,1782045082000,-500.0,0.00028219,2]
[425963804,1782045082000,-173.0,0.00021,2]
[425963816,1782045082000,-500.0,0.00028219,2]
[425963819,1782045082000,-1481.26125318,0.00028219,2]
[425963811,1782045082000,-1440.14220462,0.00028219,2]
[425963824,1782045082000,-500.0,0.00028219,2]
[425963825,1782045082000,-500.0,0.00028219,2]
[425963823,1782045082000,-500.0,0.00028219,2]
[425963821,1782045082000,-311.97024469,0.00028219,2]